[Event "9th Amsterdam Science Park B 2019"]
[Site "Amsterdam"]
[Date "2019.07.13"]
[Round "8.6"]
[White "Gutmann, Alois"]
[Black "Burton, Graham P"]
[Result "1-0"]
[ECO "A00"]
[WhiteElo "2036"]
[BlackElo "1968"]
[Annotator "NA"]
[PlyCount "85"]
[EventDate "2019.07.06"]
[EventType "swiss"]
[EventCountry "NED"]
[SourceTitle "playchess.com"]
[Source "ChessBase"]
[SourceQuality "1"]
[TimeControl "40/5400+30:1800+30"]

1. Nc3 {[%emt 0:12:45]} c5 {[%emt 0:00:16]} 2. Nf3 {[%emt 0:00:05]} e6 {[%emt 0:02:24]} 3. d4 {[%emt 0:03:09]} cxd4 {[%emt 0:00:23]} 4. Nxd4 {[%emt 0:00:01]} a6 {[%emt 0:03:35]} 5. g3 {[%emt 0:00:24]} Qc7 {[%emt 0:00:27]} 6. Bg2 {[%emt 0:00:17]} Nc6 {[%emt 0:01:34]} 7. O-O {[%emt 0:00:55]} Nf6 {[%emt 0:05:53]} 8. a4 {[%emt 0:03:01]} Be7 {[%emt 0:04:05]} 9. e4 {[%emt 0:03:02]} O-O {[%emt 0:03:46]} 10. Kh1 {[%emt 0:04:50]} d6 {[%emt 0:02:27]} 11. f4 {[%emt 0:05:47]} Bd7 {[%emt 0:11:35]} 12. Nb3 {[%emt 0:04:27]} Rac8 {[%emt 0:10:47]} 13. Be3 {[%emt 0:06:55]} b6 {[%emt 0:01:46]} 14. Qe2 {[%emt 0:01:24]} Nb4 {[%emt 0:00:55]} 15. Bg1 {[%emt 0:05:39]} Bc6 {[%emt 0:02:06]} 16. Rfd1 {[%emt 0:04:28]} Bb7 {[%emt 0:01:55]} 17. Rd2 {[%emt 0:04:51]} Rfd8 {[%emt 0:08:22]} 18. Rad1 {[%emt 0:01:16]} Bf8 {[%emt 0:03:19]} 19. Qf2 {[%emt 0:02:40]} Nd7 {[%emt 0:01:08]} 20. g4 {[%emt 0:03:36]} Nc5 {[%emt 0:00:52]} 21. Nd4 {[%emt 0:04:04]} d5 {[%emt 0:03:46]} 22. e5 {[%emt 0:05:49]} Ne4 {[%emt 0:01:50]} 23. Nxe4 {[%emt 0:00:29]} dxe4 {[%emt 0:00:03]} 24. Qe2 {[%emt 0:07:15]} g5 {[%emt 0:06:02]} 25. Bxe4 {[%emt 0:02:25]} gxf4 {[%emt 0:00:11]} 26. c3 {[%emt 0:02:32]} Nd5 {[%emt 0:01:00]} 27. Nf3 {[%emt 0:01:57]} Bg7 {[%emt 0:04:47]} 28. Bd4 {[%emt 0:00:12]} Ne7 {[%emt 0:06:16]} 29. Bxb7 {[%emt 0:03:31]} Qxb7 {[%emt 0:00:10]} 30. Qf2 {[%emt 0:00:57]} Ng6 {[%emt 0:00:55]} 31. Kg1 {[%emt 0:00:39]} Rd5 {[%emt 0:05:22]} 32. Re1 {[%emt 0:00:27]} b5 {[%emt 0:01:47]} 33. a5 {[%emt 0:00:26]} Qb8 {[%emt 0:01:51]} 34. Rde2 {[%emt 0:01:03]} b4 {[%emt 0:00:55]} 35. h4 {[%emt 0:01:41]} Rc4 {[%emt 0:02:06]} 36. h5 {[%emt 0:00:58]} Ne7 {[%emt 0:00:10]} 37. Nd2 {[%emt 0:00:21]} Rc8 {[%emt 0:02:21]} 38. Qxf4 {[%emt 0:02:48]} Nc6 {[%emt 0:00:24]} 39. h6 {[%emt 0:01:35]} Bh8 {[%emt 0:00:42]} 40. Rf1 {[%emt 0:00:35]} Rd7 {[%emt 0:00:33]} 41. Qg5+ {[%emt 0:08:19]} Kf8 {[%emt 0:00:14]} 42. Bc5+ {[%emt 0:00:40]} Ne7 {[%emt 0:02:26]} 43. Ref2 {[%emt 0:02:41]} 1-0

[Event "9th Amsterdam Science Park B 2019"]
[Site "Amsterdam"]
[Date "2019.07.13"]
[Round "8.7"]
[White "Honkoop, Mark"]
[Black "Tijssens, Rob"]
[Result "1-0"]
[ECO "B52"]
[WhiteElo "1670"]
[BlackElo "1725"]
[Annotator "NA"]
[PlyCount "114"]
[EventDate "2019.07.06"]
[EventType "swiss"]
[EventCountry "NED"]
[SourceTitle "playchess.com"]
[Source "ChessBase"]
[SourceQuality "1"]
[TimeControl "40/5400+30:1800+30"]

1. e4 c5 {[%emt 0:00:00]} 2. Nf3 {[%emt 0:00:00]} d6 {[%emt 0:00:00]} 3. Bb5+ {[%emt 0:00:00]} Bd7 {[%emt 0:00:04]} 4. Bxd7+ {[%emt 0:00:00]} Qxd7 {[%emt 0:00:06]} 5. c4 {[%emt 0:00:12]} Nc6 {[%emt 0:02:11]} 6. d4 {[%emt 0:01:10]} cxd4 {[%emt 0:01:00]} 7. Nxd4 {[%emt 0:00:17]} g6 {[%emt 0:00:38]} 8. Be3 {[%emt 0:15:01]} Bg7 {[%emt 0:00:17]} 9. Nc3 {[%emt 0:02:55]} Nf6 {[%emt 0:01:09]} 10. h3 {[%emt 0:01:05]} O-O {[%emt 0:00:45]} 11. O-O {[%emt 0:01:23]} Rfc8 {[%emt 0:13:42]} 12. b3 {[%emt 0:06:06]} Qd8 {[%emt 0:06:50]} 13. Qd2 {[%emt 0:09:26]} Qa5 {[%emt 0:04:08]} 14. Rfd1 {[%emt 0:06:02]} Qc7 {[%emt 0:10:37]} 15. Rac1 {[%emt 0:04:32]} b6 {[%emt 0:03:42]} 16. Qe2 {[%emt 0:10:35]} Qb7 {[%emt 0:02:10]} 17. Nxc6 {[%emt 0:09:04]} Qxc6 {[%emt 0:01:07]} 18. Bg5 {[%emt 0:01:27]} Re8 {[%emt 0:07:43]} 19. Rc2 {[%emt 0:06:24]} Rac8 {[%emt 0:03:08]} 20. Qe3 {[%emt 0:05:31]} Qb7 {[%emt 0:09:04]} 21. e5 {[%emt 0:03:33]} dxe5 {[%emt 0:01:08]} 22. Qxe5 {[%emt 0:01:10]} Rc5 {[%emt 0:10:51]} 23. Qe3 {[%emt 0:03:12]} Qc8 {[%emt 0:02:10]} 24. Bh6 {[%emt 0:03:31]} Bxh6 {[%emt 0:08:21]} 25. Qxh6 {[%emt 0:00:11]} Qe6 {[%emt 0:00:13]} 26. Re2 {[%emt 0:01:43]} Re5 {[%emt 0:01:19]} 27. Qd2 {[%emt 0:01:06]} Rxe2 {[%emt 0:01:58]} 28. Qxe2 {[%emt 0:00:45]} Qc6 {[%emt 0:01:08]} 29. Qd3 {[%emt 0:01:12]} Rc8 {[%emt 0:01:06]} 30. Nd5 {[%emt 0:01:31]} Nxd5 {[%emt 0:00:54]} 31. Qxd5 {[%emt 0:00:09]} Qc7 {[%emt 0:00:31]} 32. Qd7 {[%emt 0:00:56]} Kg7 {[%emt 0:00:52]} 33. Kf1 {[%emt 0:00:59]} a5 {[%emt 0:01:18]} 34. Rd5 {[%emt 0:01:42]} a4 {[%emt 0:01:32]} 35. Ke2 {[%emt 0:02:53]} axb3 {[%emt 0:00:17]} 36. Qxc7 {[%emt 0:00:23]} Rxc7 {[%emt 0:00:07]} 37. axb3 {[%emt 0:00:02]} Rc6 {[%emt 0:00:45]} 38. Kd3 {[%emt 0:00:37]} Kf6 {[%emt 0:00:46]} 39. Kc3 {[%emt 0:00:51]} e6 {[%emt 0:03:48]} 40. Rd2 {[%emt 0:01:52]} b5 {[%emt 0:01:33]} 41. Kb4 {[%emt 0:02:18]} bxc4 {[%emt 0:00:10]} 42. bxc4 {[%emt 0:00:04]} Ke7 {[%emt 0:01:50]} 43. Kb5 {[%emt 0:00:27]} Rc8 {[%emt 0:00:30]} 44. c5 {[%emt 0:00:34]} Rb8+ {[%emt 0:02:57]} 45. Kc6 {[%emt 0:02:13]} Rb1 {[%emt 0:01:01]} 46. Kc7 {[%emt 0:01:06]} Rc1 {[%emt 0:02:24]} 47. c6 {[%emt 0:00:29]} h5 {[%emt 0:01:01]} 48. Kb7 {[%emt 0:02:50]} Rb1+ {[%emt 0:00:31]} 49. Kc8 {[%emt 0:00:11]} Rc1 {[%emt 0:00:06]} 50. c7 {[%emt 0:11:21]} Ke8 {[%emt 0:00:53]} 51. Rb2 {[%emt 0:00:52]} Ke7 {[%emt 0:08:18]} 52. Kb7 {[%emt 0:00:22]} Kd7 {[%emt 0:00:35]} 53. Rd2+ {[%emt 0:00:33] Kd6 Kc8+} Ke7 54. Rb2 Kd6 55. Rb6+ Ke7 {Kb7 Kd7} 56. Kb8 Rxc7 57. Rb2 Rc2 1-0

[Event "9th Amsterdam Science Park B 2019"]
[Site "Amsterdam"]
[Date "2019.07.13"]
[Round "8.8"]
[White "Tardijn, Ilja"]
[Black "Cohn, Samuel"]
[Result "0-1"]
[ECO "E92"]
[WhiteElo "1645"]
[BlackElo "1679"]
[Annotator "NA"]
[PlyCount "70"]
[EventDate "2019.07.06"]
[EventType "swiss"]
[EventCountry "NED"]
[SourceTitle "playchess.com"]
[Source "ChessBase"]
[SourceQuality "1"]
[TimeControl "40/5400+30:1800+30"]

1. d4 {[%emt 0:00:40]} Nf6 {[%emt 0:00:20]} 2. c4 {[%emt 0:00:16]} g6 {[%emt 0:00:05]} 3. Nc3 {[%emt 0:00:05]} Bg7 {[%emt 0:00:09]} 4. e4 {[%emt 0:00:05]} d6 {[%emt 0:00:04]} 5. Nf3 {[%emt 0:00:26]} O-O {[%emt 0:00:09]} 6. Be2 {[%emt 0:00:04]} e5 {[%emt 0:00:29]} 7. dxe5 {[%emt 0:00:22]} dxe5 {[%emt 0:00:16]} 8. Qxd8 {[%emt 0:00:07]} Rxd8 {[%emt 0:00:12]} 9. Bg5 {[%emt 0:00:06]} c6 {[%emt 0:11:23]} 10. Nxe5 {[%emt 0:00:40]} Re8 {[%emt 0:00:12]} 11. O-O-O {[%emt 0:00:48]} Nxe4 {[%emt 0:07:19]} 12. Nxe4 {[%emt 0:05:22]} Bxe5 {[%emt 0:01:33]} 13. Bf3 {[%emt 0:34:57]} Bf5 {[%emt 0:19:06]} 14. Nf6+ {[%emt 0:16:55]} Bxf6 {[%emt 0:03:20]} 15. Bxf6 {[%emt 0:00:05]} Nd7 {[%emt 0:00:23]} 16. Bc3 {[%emt 0:00:23]} Nc5 {[%emt 0:10:19]} 17. Bd4 {[%emt 0:08:22]} Nd3+ {[%emt 0:00:46]} 18. Kd2 {[%emt 0:01:28]} c5 19. g4 {[%emt 0:06:44]} cxd4 {[%emt 0:12:03]} 20. gxf5 {[%emt 0:00:20]} Nxf2 {[%emt 0:00:07]} 21. fxg6 {[%emt 0:00:53]} hxg6 {[%emt 0:00:24]} 22. c5 {[%emt 0:04:05]} Nxh1 {[%emt 0:08:39]} 23. Bxh1 {[%emt 0:03:03]} Rac8 {[%emt 0:05:24]} 24. b4 {[%emt 0:00:37]} Rc7 {[%emt 0:00:36]} 25. Kd3 {[%emt 0:00:23]} Kg7 {[%emt 0:07:09]} 26. Kc4 {[%emt 0:01:17]} Re2 {[%emt 0:01:27]} 27. Rxd4 {[%emt 0:00:19]} Rxh2 {[%emt 0:00:23]} 28. Bd5 {[%emt 0:00:35]} Rxa2 {[%emt 0:00:14]} 29. Kb5 {[%emt 0:00:13]} Ra1 {[%emt 0:02:30]} 30. Re4 {[%emt 0:00:30]} Rg1 {[%emt 0:00:36]} 31. Re8 {[%emt 0:00:15]} Rg5 {[%emt 0:02:07]} 32. Rd8 {[%emt 0:01:33]} Re7 {[%emt 0:01:06]} 33. Kc4 {[%emt 0:00:21]} Rg4+ {[%emt 0:00:39]} 34. Kb5 {[%emt 0:00:09]} Rd4 {[%emt 0:01:35]} 35. Rd6 {[%emt 0:00:14]} Re5 {[%emt 0:01:02]} 0-1

[Event "9th Amsterdam Science Park B 2019"]
[Site "Amsterdam"]
[Date "2019.07.13"]
[Round "8.9"]
[White "Boons, Joris"]
[Black "Polm, Sjors"]
[Result "1-0"]
[ECO "B01"]
[WhiteElo "1512"]
[BlackElo "1395"]
[Annotator "NA"]
[PlyCount "45"]
[EventDate "2019.07.06"]
[EventType "swiss"]
[EventCountry "NED"]
[SourceTitle "playchess.com"]
[Source "ChessBase"]
[SourceQuality "1"]
[TimeControl "40/5400+30:1800+30"]

1. e4 d5 {[%emt 0:00:00]} 2. exd5 {[%emt 0:19:07]} Qxd5 {[%emt 0:00:00]} 3. Nc3 {[%emt 0:00:01]} Qa5 {[%emt 0:00:10]} 4. d4 {[%emt 0:00:26]} c6 {[%emt 0:00:16]} 5. Nf3 {[%emt 0:00:19]} Bg4 {[%emt 0:01:13]} 6. Bc4 {[%emt 0:00:21]} Nf6 {[%emt 0:02:48]} 7. Bd2 {[%emt 0:03:07]} Qh5 {[%emt 0:03:03]} 8. Be2 {[%emt 0:04:55]} Nbd7 {[%emt 0:05:11]} 9. h3 {[%emt 0:00:34]} e6 {[%emt 0:04:16]} 10. O-O {[%emt 0:00:14]} Bxf3 {[%emt 0:00:11]} 11. Bxf3 {[%emt 0:00:03]} Qg6 {[%emt 0:04:31]} 12. Bf4 {[%emt 0:03:45]} O-O-O {[%emt 0:04:00]} 13. Qe2 {[%emt 0:01:58]} Nb6 {[%emt 0:05:20]} 14. Bxc6 {[%emt 0:06:26]} Rxd4 {[%emt 0:04:12]} 15. Be5 {[%emt 0:07:49]} Rc4 {[%emt 0:06:58]} 16. Bf3 {[%emt 0:00:17]} Nfd5 {[%emt 0:03:29]} 17. Nxd5 {[%emt 0:02:13]} exd5 {[%emt 0:04:25]} 18. Rfd1 {[%emt 0:01:38]} Qxc2 {[%emt 0:03:28]} 19. Rd2 {[%emt 0:04:17]} Qg6 {[%emt 0:06:34]} 20. Rxd5 {[%emt 0:01:04]} Rc2 {[%emt 0:05:54]} 21. Bg4+ {[%emt 0:03:59]} f5 {[%emt 0:00:32]} 22. Qxc2+ {[%emt 0:00:15]} Qc6 {[%emt 0:00:18]} 23. Bxf5+ {Qg6} 1-0

[Event "9th Amsterdam Science Park B 2019"]
[Site "Amsterdam"]
[Date "2019.07.13"]
[Round "8.10"]
[White "Jongsma, Kees"]
[Black "Belozerova, Olga"]
[Result "0-1"]
[ECO "C08"]
[WhiteElo "1381"]
[BlackElo "1276"]
[Annotator "NA"]
[PlyCount "62"]
[EventDate "2019.07.06"]
[EventType "swiss"]
[EventCountry "NED"]
[SourceTitle "playchess.com"]
[Source "ChessBase"]
[SourceQuality "1"]
[TimeControl "40/5400+30:1800+30"]

1. e4 {[%emt 0:00:00]} e6 {[%emt 0:00:00]} 2. d4 {[%emt 0:00:00]} d5 {[%emt 0:00:00]} 3. Nd2 {[%emt 0:00:00]} c5 {[%emt 0:00:00]} 4. exd5 {[%emt 0:00:56]} exd5 {[%emt 0:00:02]} 5. Bb5+ {[%emt 0:01:19]} Nc6 {[%emt 0:01:26]} 6. Ngf3 {[%emt 0:03:57]} a6 {[%emt 0:01:30]} 7. Bxc6+ {[%emt 0:01:31]} bxc6 {[%emt 0:00:04]} 8. O-O {[%emt 0:00:35]} cxd4 {[%emt 0:03:20]} 9. Re1+ {[%emt 0:00:58]} Be7 {[%emt 0:00:27]} 10. Nb3 {[%emt 0:01:53]} Nf6 {[%emt 0:01:54]} 11. Nbxd4 {[%emt 0:02:20]} Bd7 {[%emt 0:03:41]} 12. Ne5 {[%emt 0:05:27]} Rc8 {[%emt 0:02:28]} 13. Nxd7 {[%emt 0:03:25]} Qxd7 {[%emt 0:00:44]} 14. Qe2 Ne4 {[%emt 0:04:52]} 15. Qxa6 {[%emt 0:12:58]} O-O {[%emt 0:01:04]} 16. Qe2 {[%emt 0:08:00]} Bb4 {[%emt 0:00:47]} 17. Rd1 {[%emt 0:02:42]} Rfe8 {[%emt 0:01:36]} 18. Qf3 {[%emt 0:03:24]} c5 {[%emt 0:07:09]} 19. Ne2 {[%emt 0:08:56]} Re6 {[%emt 0:12:48]} 20. Ng3 {[%emt 0:06:39]} Rce8 {[%emt 0:04:28]} 21. Nxe4 {[%emt 0:08:03]} Rxe4 {[%emt 0:03:02]} 22. Be3 {[%emt 0:03:00]} Qe6 {[%emt 0:02:30]} 23. g3 {[%emt 0:02:32]} d4 {[%emt 0:01:01]} 24. Bf4 {[%emt 0:02:32]} Qf6 {[%emt 0:02:17]} 25. c3 {[%emt 0:01:56]} dxc3 {[%emt 0:00:56]} 26. bxc3 {[%emt 0:01:00]} Bxc3 {[%emt 0:01:46]} 27. Rd6 {[%emt 0:01:17]} Rxf4 {[%emt 0:01:11]} 28. Rxf6 {[%emt 0:01:21]} Rxf3 {[%emt 0:00:16]} 29. Rxf3 {[%emt 0:00:04]} Bxa1 {[%emt 0:00:11]} 30. a4 {[%emt 0:01:05]} c4 {[%emt 0:00:58]} 31. Ra3 {[%emt 0:00:07]} Bb2 {[%emt 0:00:33]} 0-1

[Event "9th Amsterdam Science Park B 2019"]
[Site "Amsterdam"]
[Date "2019.07.14"]
[Round "9.1"]
[White "Roemersma, Aad"]
[Black "Emans, Job"]
[Result "0-1"]
[ECO "C47"]
[WhiteElo "2029"]
[BlackElo "1989"]
[Annotator "NA"]
[PlyCount "64"]
[EventDate "2019.07.06"]
[EventType "swiss"]
[EventCountry "NED"]
[SourceTitle "playchess.com"]
[Source "ChessBase"]
[SourceQuality "1"]
[TimeControl "40/5400+30:1800+30"]

1. e4 {[%emt 0:00:00]} e5 {[%emt 0:00:00]} 2. Nf3 {[%emt 0:00:00]} Nc6 {[%emt 0:00:00]} 3. Nc3 {[%emt 0:00:43]} Nf6 {[%emt 0:00:08]} 4. d4 {[%emt 0:00:07]} exd4 {[%emt 0:00:26]} 5. Nxd4 {[%emt 0:00:05]} Bb4 {[%emt 0:00:09]} 6. Nxc6 {[%emt 0:00:15]} bxc6 {[%emt 0:00:07]} 7. Bd3 {[%emt 0:00:05]} O-O {[%emt 0:02:15]} 8. O-O {[%emt 0:00:15]} Re8 {[%emt 0:02:21]} 9. Bg5 {[%emt 0:01:31]} h6 {[%emt 0:11:16]} 10. Bh4 {[%emt 0:00:52]} Bxc3 {[%emt 0:04:17]} 11. bxc3 {[%emt 0:00:13]} g5 {[%emt 0:02:51]} 12. Bg3 {[%emt 0:03:58]} Nxe4 {[%emt 0:26:49]} 13. Qh5 {[%emt 0:00:11]} Qf6 {[%emt 0:00:14]} 14. Rae1 {[%emt 0:16:51]} d5 {[%emt 0:03:38]} 15. Bxc7 {[%emt 0:06:24]} Bd7 {[%emt 0:05:02]} 16. f4 {[%emt 0:04:58]} g4 {[%emt 0:02:32]} 17. Be5 {[%emt 0:02:49]} Qg6 {[%emt 0:01:09]} 18. Qxg6+ {[%emt 0:05:11]} fxg6 {[%emt 0:00:21]} 19. Re2 {[%emt 0:04:46]} Bf5 {[%emt 0:03:23]} 20. c4 {[%emt 0:04:57]} Re7 {[%emt 0:04:29]} 21. cxd5 {[%emt 0:01:05]} cxd5 {[%emt 0:00:05]} 22. c4 {[%emt 0:00:16]} Ng3 {[%emt 0:01:24]} 23. Bxf5 {[%emt 0:05:23]} Nxe2+ {[%emt 0:00:23]} 24. Kf2 {[%emt 0:00:07]} gxf5 {[%emt 0:00:23]} 25. cxd5 {[%emt 0:00:09]} Rxe5 {[%emt 0:05:23]} 26. fxe5 {[%emt 0:00:07]} Nc3 {[%emt 0:00:35]} 27. d6 {[%emt 0:00:05]} Kf7 {[%emt 0:00:49]} 28. Ke3 {[%emt 0:00:35]} Ke6 {[%emt 0:01:19]} 29. Kd4 {[%emt 0:00:05]} Rc8 {[%emt 0:02:38]} 30. a4 {[%emt 0:01:27]} Nxa4 {[%emt 0:02:13]} 31. Ra1 {[%emt 0:00:14]} Nb6 {[%emt 0:00:45]} 32. Rxa7 {[%emt 0:00:23]} Nd7 {[%emt 0:01:40]} 0-1

[Event "9th Amsterdam Science Park B 2019"]
[Site "Amsterdam"]
[Date "2019.07.14"]
[Round "9.2"]
[White "Duson, Robin"]
[Black "Breedveld, Andre"]
[Result "1-0"]
[ECO "A53"]
[WhiteElo "1936"]
[BlackElo "1947"]
[Annotator "NA"]
[PlyCount "59"]
[EventDate "2019.07.06"]
[EventType "swiss"]
[EventCountry "NED"]
[SourceTitle "playchess.com"]
[Source "ChessBase"]
[SourceQuality "1"]
[TimeControl "40/5400+30:1800+30"]

1. d4 {[%emt 0:00:00]} Nf6 {[%emt 0:00:00]} 2. c4 {[%emt 0:00:00]} d6 {[%emt 0:00:00]} 3. Nc3 {[%emt 0:00:32]} Nbd7 {[%emt 0:00:00]} 4. e4 {[%emt 0:00:57]} e5 {[%emt 0:01:15]} 5. d5 {[%emt 0:01:00]} Nc5 {[%emt 0:00:19]} 6. f3 {[%emt 0:03:17]} a5 {[%emt 0:00:25]} 7. Be3 {[%emt 0:01:39]} b6 {[%emt 0:00:56]} 8. a3 {[%emt 0:06:49]} Be7 {[%emt 0:05:34]} 9. b4 {[%emt 0:02:10]} Ncd7 {[%emt 0:01:36]} 10. g4 {[%emt 0:16:25]} h6 {[%emt 0:01:56]} 11. h4 {[%emt 0:03:35]} Nf8 {[%emt 0:01:50]} 12. Nge2 {[%emt 0:05:10]} Bxg4 {[%emt 0:05:26]} 13. fxg4 {[%emt 0:03:38]} Nxg4 {[%emt 0:01:15]} 14. Kd2 {[%emt 0:04:14]} Nxe3 {[%emt 0:05:09]} 15. Kxe3 {[%emt 0:00:06]} Bxh4 {[%emt 0:00:33]} 16. Qa4+ {[%emt 0:04:23]} Nd7 {[%emt 0:00:07]} 17. Bh3 {[%emt 0:00:47]} Bg5+ {[%emt 0:00:06]} 18. Kd3 {[%emt 0:00:45]} Ke7 {[%emt 0:00:40]} 19. Qc2 {[%emt 0:10:14]} Rf8 {[%emt 0:08:58]} 20. Raf1 {[%emt 0:04:33]} axb4 {[%emt 0:04:07]} 21. axb4 {[%emt 0:00:04]} Ra3 {[%emt 0:00:27]} 22. Qb2 {[%emt 0:02:14]} Ra8 {[%emt 0:00:24]} 23. Ra1 {[%emt 0:00:27]} g6 {[%emt 0:01:22]} 24. Rxa8 {[%emt 0:01:34]} Qxa8 {[%emt 0:00:07]} 25. Ra1 {[%emt 0:00:11]} Qb8 {[%emt 0:03:01]} 26. Ng3 {[%emt 0:02:52]} h5 {[%emt 0:00:49]} 27. Qg2 {[%emt 0:02:12]} Bf6 {[%emt 0:12:00]} 28. Nb5 {[%emt 0:01:18]} Ke8 {[%emt 0:05:27]} 29. Ra8 {[%emt 0:01:18]} Ke7 30. Ra2 1-0

[Event "9th Amsterdam Science Park B 2019"]
[Site "Amsterdam"]
[Date "2019.07.14"]
[Round "9.3"]
[White "Yu, Michael"]
[Black "Dambrink, Wouter"]
[Result "1-0"]
[ECO "D41"]
[WhiteElo "1995"]
[BlackElo "1931"]
[Annotator "NA"]
[PlyCount "81"]
[EventDate "2019.07.06"]
[EventType "swiss"]
[EventCountry "NED"]
[SourceTitle "playchess.com"]
[Source "ChessBase"]
[SourceQuality "1"]
[TimeControl "40/5400+30:1800+30"]

1. d4 {[%emt 0:00:00]} d5 {[%emt 0:09:35]} 2. c4 {[%emt 0:00:00]} e6 {[%emt 0:00:19]} 3. Nf3 {[%emt 0:00:04]} Nf6 {[%emt 0:00:14]} 4. Nc3 {[%emt 0:00:11]} c5 {[%emt 0:00:51]} 5. cxd5 {[%emt 0:01:57]} exd5 {[%emt 0:00:28]} 6. Bg5 {[%emt 0:00:11]} Be6 {[%emt 0:01:56]} 7. e3 {[%emt 0:00:11]} Nc6 {[%emt 0:03:20]} 8. Bb5 {[%emt 0:06:12]} Be7 {[%emt 0:13:41]} 9. O-O {[%emt 0:00:51]} O-O {[%emt 0:00:29]} 10. dxc5 {[%emt 0:01:34]} Bxc5 {[%emt 0:00:51]} 11. Ne2 {[%emt 0:00:45]} h6 {[%emt 0:04:51]} 12. Bh4 {[%emt 0:01:40]} g5 {[%emt 0:01:28]} 13. Bg3 {[%emt 0:00:09]} Ne4 {[%emt 0:00:41]} 14. Nfd4 {[%emt 0:01:30]} Rc8 {[%emt 0:05:46]} 15. Nxe6 {[%emt 0:02:10]} fxe6 {[%emt 0:00:56]} 16. Rc1 {[%emt 0:05:05]} Qf6 {[%emt 0:04:46]} 17. Rxc5 {[%emt 0:05:00]} Nxc5 {[%emt 0:00:48]} 18. Bd6 {[%emt 0:00:07]} Qxb2 {[%emt 0:03:07]} 19. Bxc6 {[%emt 0:06:05]} Rxc6 {[%emt 0:01:03]} 20. Bxf8 {[%emt 0:00:16]} Kxf8 {[%emt 0:00:51]} 21. Nd4 {[%emt 0:00:23]} Ra6 {[%emt 0:09:35]} 22. Qf3+ {[%emt 0:02:18]} Kg7 {[%emt 0:06:57]} 23. Qg3 {[%emt 0:02:04]} Qb6 {[%emt 0:01:48]} 24. Qe5+ {[%emt 0:04:36]} Kh7 {[%emt 0:01:25]} 25. Rc1 {[%emt 0:02:37]} Rxa2 {[%emt 0:08:45]} 26. h4 {[%emt 0:04:42]} Qb2 {[%emt 0:04:44]} 27. Rf1 {[%emt 0:01:12]} Ne4 {[%emt 0:04:10]} 28. Qxe6 {[%emt 0:05:54]} Nxf2 {[%emt 0:02:30]} 29. h5 {[%emt 0:01:19]} g4 {[%emt 0:04:08]} 30. Qg6+ {[%emt 0:01:15]} Kh8 {[%emt 0:00:09]} 31. Qxh6+ {[%emt 0:00:05]} Kg8 {[%emt 0:00:03]} 32. Qe6+ {[%emt 0:01:32]} Kh7 {[%emt 0:00:52]} 33. Qf7+ {[%emt 0:00:25]} Kh8 {[%emt 0:00:07]} 34. Qxd5 {[%emt 0:00:19]} Ra1 {[%emt 0:04:16]} 35. Rxa1 {[%emt 0:08:51]} Qxa1+ {[%emt 0:01:06]} 36. Kxf2 {[%emt 0:00:08]} Qd1 {[%emt 0:00:49]} 37. Qxb7 {[%emt 0:08:44]} g3+ {[%emt 0:00:28]} 38. Kxg3 {[%emt 0:00:21]} Qxh5 {[%emt 0:00:10]} 39. Qb8+ {[%emt 0:00:29]} Kh7 {[%emt 0:00:19]} 40. Qxa7+ {[%emt 0:00:04]} Kh8 {[%emt 0:00:56]} 41. Qb8+ {[%emt 0:32:41]} 1-0

[Event "9th Amsterdam Science Park B 2019"]
[Site "Amsterdam"]
[Date "2019.07.14"]
[Round "9.4"]
[White "Aalten, Evert"]
[Black "Gutmann, Alois"]
[Result "1/2-1/2"]
[ECO "A04"]
[WhiteElo "1931"]
[BlackElo "2036"]
[Annotator "NA"]
[PlyCount "87"]
[EventDate "2019.07.06"]
[EventType "swiss"]
[EventCountry "NED"]
[SourceTitle "playchess.com"]
[Source "ChessBase"]
[SourceQuality "1"]
[TimeControl "40/5400+30:1800+30"]

1. Nf3 {[%emt 0:00:00]} e6 {[%emt 0:00:24]} 2. c4 {[%emt 0:00:50]} f5 {[%emt 0:00:46]} 3. g3 {[%emt 0:00:29]} b6 {[%emt 0:00:04]} 4. Bg2 {[%emt 0:00:16]} Bb7 {[%emt 0:00:04]} 5. O-O {[%emt 0:00:47]} Nf6 {[%emt 0:00:03]} 6. d4 {[%emt 0:00:32]} Be7 {[%emt 0:00:05]} 7. Nc3 {[%emt 0:00:40]} Ne4 {[%emt 0:00:05]} 8. Qc2 {[%emt 0:00:40]} Nxc3 {[%emt 0:00:06]} 9. Qxc3 {[%emt 0:00:12]} Bf6 {[%emt 0:00:08]} 10. b3 {[%emt 0:00:57]} O-O {[%emt 0:00:17]} 11. Bb2 {[%emt 0:00:13]} Qe8 {[%emt 0:02:32]} 12. Qd2 {[%emt 0:06:32]} Be4 {[%emt 0:01:28]} 13. Ne1 {[%emt 0:03:28]} Bxg2 {[%emt 0:02:44]} 14. Kxg2 {[%emt 0:02:46]} Nc6 {[%emt 0:03:35]} 15. Nf3 {[%emt 0:01:17]} Ne7 {[%emt 0:11:46]} 16. Rfd1 {[%emt 0:11:40]} Qh5 {[%emt 0:08:44]} 17. d5 {[%emt 0:01:51]} Bxb2 {[%emt 0:18:57]} 18. Qxb2 {[%emt 0:00:22]} d6 {[%emt 0:11:04]} 19. dxe6 {[%emt 0:01:41]} Rf6 {[%emt 0:01:01]} 20. b4 {[%emt 0:08:45]} Rxe6 {[%emt 0:05:22]} 21. c5 {[%emt 0:02:02]} d5 {[%emt 0:01:24]} 22. cxb6 {[%emt 0:00:25]} axb6 {[%emt 0:04:21]} 23. a4 {[%emt 0:01:17]} f4 {[%emt 0:07:38]} 24. a5 {[%emt 0:01:14]} b5 {[%emt 0:01:41]} 25. Rac1 {[%emt 0:09:13]} c6 {[%emt 0:00:29]} 26. Qd4 {[%emt 0:07:36]} Rxe2 {[%emt 0:04:41]} 27. Re1 {[%emt 0:03:04]} Nf5 {[%emt 0:00:11]} 28. Qxf4 {[%emt 0:04:57]} Ne3+ {[%emt 0:01:35]} 29. Qxe3 {[%emt 0:00:30]} Rxe3 {[%emt 0:00:12]} 30. Rxe3 {[%emt 0:00:12]} Qg4 {[%emt 0:01:46]} 31. Rxc6 {[%emt 0:00:55]} Qxb4 {[%emt 0:01:05]} 32. Rc7 {[%emt 0:00:59]} Qf8 {[%emt 0:04:28]} 33. Ree7 {[%emt 0:03:51]} Re8 {[%emt 0:02:44]} 34. Red7 {[%emt 0:01:04]} Rd8 {[%emt 0:01:04]} 35. Re7 {[%emt 0:01:53]} Re8 {[%emt 0:00:05]} 36. Red7 {[%emt 0:00:13]} Qf6 {[%emt 0:03:03]} 37. Rxd5 {[%emt 0:02:34]} Rf8 {[%emt 0:00:08]} 38. Rd3 {[%emt 0:00:38]} b4 {[%emt 0:01:46]} 39. Rb7 {[%emt 0:01:41]} Qa6 {[%emt 0:01:09]} 40. Rdd7 {[%emt 0:00:14]} Qf6 {[%emt 0:00:14]} 41. Rd3 {[%emt 0:30:42]} Qf5 {[%emt 0:05:27]} 42. Rb3 {[%emt 0:00:00]} Qxa5 {[%emt 0:01:51]} 43. R7xb4 {[%emt 0:00:00]} Qd5 {[%emt 0:01:05]} 44. Rb5 {[%emt 0:00:00]} 1/2-1/2